Cogmind - Beta 14 @@@ ROGUE MODE // 2024.09.17 @ 09:20:09 // Winter2019/RPGLIKE Player: Toaster Result: Destroyed by Triborg with Siege Cannon Performance ------------- Evolutions (0) 0 Regions Visited (4) 800 Robots Destroyed (76) 380 Value Destroyed (1810) 1810 Prototype IDs (18) 360 Alien Tech Used (0) 0 Bonus (102) 102 TOTAL SCORE: 3452 Bonus ------- Registered with UFD 300 Friendly Fire -198 Cogmind --------- Core Integrity 0/600 Matter 275/350 Energy 93/100 System Corruption 0% Temperature Warm (158) Movement Rolling (90) Location -9/Scraptown Parts ------- > --- POWER (1) -------- (None) > --- PROPULSION (3) --- Armored Wheel Armored Wheel Armored Wheel > --- UTILITY (4) ------ Kinecellerator Gun Armor > --- WEAPON (2+1) ----- Barrage Gun (+) Battle Cannon Battle Cannon > --- INVENTORY (1) ---- (None) Peak State ------------ > --- POWER ------------ Ion Engine > --- PROPULSION ------- Armored Wheel Armored Wheel Armored Wheel > --- UTILITY ---------- Gun Armor Scrap Shield A0-MCA's Component Scanner > --- WEAPON ----------- Barrage Gun Battle Cannon Battle Cannon > --- INVENTORY -------- Subdweller Machine Gun [Rating: 36] Favorites ----------- Power Ion Engine Engine Ion Engine Propulsion Armored Wheel Wheel Armored Wheel Hover Unit Hover Unit Utility Scrap Shield Device Tractor Beam Storage Medium Matter Pod Processor Targeting Computer Protection Scrap Shield Weapon Battle Cannon Energy Cannon Subdweller Beam Cannon Ballistic Gun Barrage Gun Ballistic Cannon Battle Cannon Launcher Grenade Launcher Build | -11 -10 -10 -9 -9 ------- Run | Yrd Mat Sub Rec Scr Slots Evolved 6 | 1 3 1 1 . Power . | . . . . . Propulsion 2 | . 1 . 1 . Utility 3 | . 2 1 . . Weapon 1 | 1 . . . . Parts Attached 33 | 4 11 12 3 3 Power 1 | 1 . . . . Engine 1 | 1 . . . . Core . | . . . . . Reactor . | . . . . . Propulsion 10 | 1 4 2 3 . Treads . | . . . . . Leg . | . . . . . Wheel 8 | 1 2 2 3 . Hover 2 | . 2 . . . Flight . | . . . . . Utility 12 | . 5 4 . 3 Device 3 | . 1 . . 2 Storage 1 | . 1 . . . Processor 2 | . 1 . . 1 Hackware . | . . . . . Protection 6 | . 2 4 . . Artifact . | . . . . . Weapon 10 | 2 2 6 . . Energy Gun . | . . . . . Energy Cannon 1 | . . 1 . . Ballistic Gun 5 | 2 . 3 . . Ballistic Cannon 3 | . 1 2 . . Launcher 1 | . 1 . . . Special Weapon . | . . . . . Impact Weapon . | . . . . . Slashing Weapon . | . . . . . Piercing Weapon . | . . . . . Special Melee Weapon . | . . . . . Unidentified Prototypes . | . . . . . Parts Lost 2 | . . . . 2 Power 1 | . . . . 1 Propulsion . | . . . . . Utility 1 | . . . . 1 Weapon . | . . . . . Highest Loss Streak 2 | . . . . 2 To Critical Strikes . | . . . . . Average Slot Usage (%) 90 | . 98 87 84 89 Engine 10 | . 14 10 9 9 Wheel 18 | . 5 19 18 27 Hover 3 | . 17 . . . Device 1 | . . 4 . . Processor 3 | . 13 . . 3 Protection 22 | . 15 22 28 23 Energy Cannon 2 | . . 5 . . Ballistic Gun 12 | . 14 15 9 9 Ballistic Cannon 12 | . 13 4 19 18 Launcher 1 | . . 4 . . Peak Build Rating 36 | 4 8 30 31 36 Average Rating 23 | 2 6 22 28 32 On Entrance 13 | . 4 8 26 31 Naked Turns . | . . . . . Heaviest Build 50 | 8 17 50 40 40 Greatest Support 41 | 15 25 35 41 41 Greatest Overweight (x) 3 | 1 2 3 2 . Average Overweight (x) . | . . . . . Largest Inventory Capacity 1 | 1 1 1 1 1 Average Capacity . | . 1 1 1 1 Most Carried 1 | . 1 1 1 1 Average Carried . | . . . 1 . Final Capacity 1 | 1 1 1 1 1 Final Carried 1 | . 1 1 1 . Class Distribution -------------------- 37% | Derelict-Tank 30% | Mutant 19% | Subdweller-Tank 9% | Gunner Dominant Class ---------------- Mutant | -10/Materials Subdweller-Tank | -10/Subcaves Derelict-Tank | -9/Recycling Derelict-Tank | -9/Scraptown Resources | -11 -10 -10 -9 -9 ----------- Run | Yrd Mat Sub Rec Scr Matter Collected 2033 | 240 694 605 479 15 Remotely 476 | . 40 436 . . Salvage Created 1618 | . 724 234 660 . Parts 118 | . 55 30 33 . Haulers Intercepted 3 | . 2 . 1 . Recyclers Shooed 3 | . 3 . . . Parts Field Recycled . | . . . . . Retrieved Matter . | . . . . . Parts Self-Destructed 18 | . . 18 . . Prevented . | . . . . . Kills | -11 -10 -10 -9 -9 ------- Run | Yrd Mat Sub Rec Scr Combat Hostiles Destroyed 53 | . 15 22 16 . Guns 13 | . 6 . 7 . Cannons 25 | . 9 7 9 . AOE 14 | . . 14 . . Classes Destroyed 17 | . 8 3 6 . Worker 3 | . 3 . . . Builder 5 | . 5 . . . Hauler 3 | . 2 . 1 . Recycler 4 | . 3 . 1 . Operator 3 | . 3 . . . Turret 2 | . . 2 . . Watcher 3 | . 3 . . . Swarmer 18 | . 11 6 1 . Grunt 7 | . 4 2 1 . Brawler 2 | . . . 2 . Protector 2 | . . . 2 . Sentry 7 | . . . 7 . Demolisher 1 | . . . 1 . Hunter 1 | . . . 1 . Programmer 1 | . . . 1 . Artisan 1 | . . 1 . . Subdweller 14 | . . 14 . . Best Kill Streak 9 | . 6 5 9 . Combat Bots Only 8 | . 5 5 8 . Max Kills in Single Turn 2 | . 2 2 2 . Gunslinging . | . . . . . Exploded 2 | . . 2 . . Melee . | . . . . . Uniques/NPCs Destroyed . | . . . . . Combat | -11 -10 -10 -9 -9 -------- Run | Yrd Mat Sub Rec Scr Hostile Shots Fired 229 | . 76 99 24 30 Missed 72 | . 25 34 7 6 Damage Taken 2730 | . 460 1017 244 1009 Core 1761 | . 341 590 131 699 Absorbed by Shields . | . . . . . Redirected to Core 1354 | . 262 500 103 489 Core Remaining (%) 100 | 100 . . . . Volleys Fired 184 | . 77 73 29 5 Largest 4 | . 2 4 3 3 Hottest 168 | . 55 168 106 106 Shots Fired 351 | . 154 95 87 15 Gun 132 | . 77 21 29 5 Cannon 184 | . 77 39 58 10 Launcher 35 | . . 35 . . Special . | . . . . . Kinetic 303 | . 154 47 87 15 Thermal 13 | . . 13 . . Explosive 35 | . . 35 . . Electromagnetic . | . . . . . Robot Hit Streak 20 | . 16 18 11 20 Robot Miss Streak 3 | . 3 1 2 1 Penetration Max . | . . . . . Secondary Targets . | . . . . . Shots Hit Robots 214 | . 107 41 52 14 Core Hits 114 | . 38 46 23 7 Critical Kills 1 | . . 1 . . Critical Parts Destroyed 1 | . 1 . . . Critical Strikes 10 | . 6 2 2 . Meltdown 1 | . . 1 . . Destroy 1 | . 1 . . . Blast 8 | . 5 1 2 . Melee Attacks . | . . . . . Impact . | . . . . . Slashing . | . . . . . Piercing . | . . . . . Sneak Attacks . | . . . . . Combat Hostiles . | . . . . . Follow-up Attacks . | . . . . . Damage Inflicted 5505 | . 1665 2411 1120 309 Guns 1406 | . 677 232 420 77 Cannons 2299 | . 982 385 700 232 Explosions 1794 | . . 1794 . . Melee . | . . . . . Ramming 6 | . 6 . . . Kinetic 3544 | . 1659 456 1120 309 Thermal 161 | . . 161 . . Explosive 1794 | . . 1794 . . Electromagnetic . | . . . . . Impact . | . . . . . Slashing . | . . . . . Piercing . | . . . . . Highest Corruption 2 | . . . 2 . Average Corruption 1 | . . . 1 . Corruption Purged . | . . . . . Corruption Blocked . | . . . . . Effects 9 | . . . 9 . Message Errors 2 | . . . 2 . Heat Flow Errors 3 | . . . 3 . Energy Discharges 3 | . . . 3 . Data Loss (minor) 1 | . . . 1 . Overload Shots . | . . . . . Overflow Damage 108 | . 34 25 49 . Projectiles 105 | . 34 22 49 . Explosions 3 | . . 3 . . Melee . | . . . . . Knockbacks 15 | . 12 . 3 . Impact . | . . . . . Kinetic 14 | . 11 . 3 . Secondary 1 | . 1 . . . Self-Inflicted Damage 29 | . 3 26 . . Shots 2 | . . 2 . . Rammed 1 | . 1 . . . Targets Rammed 1 | . 1 . . . Kicked . | . . . . . Crushed . | . . . . . Highest Temperature 229 | . 216 93 229 157 Average Temperature 65 | . 77 35 59 94 Received Heat Transfer 528 | . 78 267 45 138 Effects 3 | . . . 3 . Interference 3 | . . . 3 . Siege Activations . | . . . . . Robots Corrupted . | . . . . . Combat Hostiles . | . . . . . Parts Fried . | . . . . . Impact Corruptions . | . . . . . Robots Melted 1 | . . 1 . . Combat Hostiles 1 | . . 1 . . Parts Melted 2 | . . 2 . . Heat Transferred 222 | . . 222 . . Parts Sabotaged . | . . . . . Parts Stolen . | . . . . . Parts Stripped . | . . . . . Power Chain Reactions . | . . . . . Alert | -11 -10 -10 -9 -9 ------- Run | Yrd Mat Sub Rec Scr Peak Influence 371 | . 371 . 191 . Initial 26 | . . . 26 . Average 99 | . 151 . 47 . Maximum Alert Level 1 | . 1 . . . Low Security (%) 83 | 100 68 . 100 . Level 1 16 | . 31 . . . Level 2 . | . . . . . Level 3 . | . . . . . Level 4 . | . . . . . Level 5 . | . . . . . High Security . | . . . . . Max Security . | . . . . . Squads Dispatched 3 | . 3 . . . Investigation 1 | . 1 . . . Extermination . | . . . . . Reinforcement 2 | . 2 . . . Assault . | . . . . . Garrison . | . . . . . Intercept . | . . . . . Searches Triggered . | . . . . . Construction Impeded . | . . . . . Haulers Reinforced . | . . . . . Active Scanning Responses . | . . . . . Cargo Convoy Interrupts . | . . . . . Stealth | -11 -10 -10 -9 -9 --------- Run | Yrd Mat Sub Rec Scr Distress Signals 1 | . 1 . . . Communications Jammed . | . . . . . Distress Signals . | . . . . . Times Spotted 60 | . 21 29 4 6 Peak Tracking Total 8 | . 8 5 2 7 Tactical Retreats 3 | . . 3 . . Traps | -11 -10 -10 -9 -9 ------- Run | Yrd Mat Sub Rec Scr Traps Triggered 2 | . 1 1 . . Indirectly . | . . . . . Trap Hack Attempts . | . . . . . Triggered . | . . . . . Disarmed . | . . . . . Reprogrammed . | . . . . . Reused . | . . . . . Traps Extracted . | . . . . . Installed . | . . . . . Triggered . | . . . . . Machines | -11 -10 -10 -9 -9 ---------- Run | Yrd Mat Sub Rec Scr Machines Disabled 1 | . . 1 . . Max in Single Turn 1 | . . 1 . . Machines Repaired . | . . . . . Machines Dismantled . | . . . . . Machines Sabotaged . | . . . . . Overloaded Fab Kills . | . . . . . Hacking | -11 -10 -10 -9 -9 --------- Run | Yrd Mat Sub Rec Scr Machines Accessed 14 | . 5 1 8 . Terminals 10 | . 4 . 6 . Fabricators . | . . . . . Repair Stations . | . . . . . Recycling Units 1 | . 1 . . . Scanalyzers . | . . . . . Garrison Access . | . . . . . Total Hacks 59 | . 14 9 36 . Successful 45 | . 7 9 29 . Failed 14 | . 7 . 7 . Catastrophic 2 | . 1 . 1 . Database Lockouts . | . . . . . Manual . | . . . . . Terminals 21 | . 10 . 11 . Fabricators . | . . . . . Repair Stations . | . . . . . Recycling Units 4 | . 4 . . . Scanalyzers . | . . . . . Garrison Access . | . . . . . Terminal Hacks 44 | . 6 9 29 . Record 33 | . . 8 25 . Prototype ID Bank 2 | . 2 . . . Branch Access Points 1 | . 1 . . . Alert Level 1 | . . . 1 . Recall Investigation 1 | . . . 1 . Hauler Manifests 1 | . 1 . . . Zone Layout 3 | . 2 . 1 . Derelict Proto ID Bank 1 | . . 1 . . Release Object 1 | . . . 1 . Fabricator Hacks . | . . . . . Repair Station Hacks . | . . . . . Recycling Unit Hacks 1 | . 1 . . . Retrieve Components 1 | . 1 . . . Scanalyzer . | . . . . . Garrison Access Hacks . | . . . . . Unauthorized Hacks . | . . . . . Terminals . | . . . . . Fabricators . | . . . . . Repair Stations . | . . . . . Recycling Units . | . . . . . Scanalyzers . | . . . . . Garrison Access . | . . . . . Data Cores Recovered 1 | . 1 . . . Used 1 | . 1 . . . Hacking Detections 6 | . 2 . 4 . Full Trace Events 3 | . 2 . 1 . Feedback Events . | . . . . . Feedback Blocked . | . . . . . Robot Schematics Acquired . | . . . . . Robots Built . | . . . . . Authchips . | . . . . . Time . | . . . . . Total Robot Build Rating . | . . . . . Part Schematics Acquired . | . . . . . Parts Built . | . . . . . Authchips . | . . . . . Time . | . . . . . Total Part Build Rating . | . . . . . Parts Repaired . | . . . . . Time . | . . . . . Parts Recycled . | . . . . . Recycled Matter . | . . . . . Retrieved Matter . | . . . . . Retrieved Components 10 | . 10 . . . Parts Scanalyzed . | . . . . . Part Schematics Acquired . | . . . . . Parts Damaged . | . . . . . Bothacking | -11 -10 -10 -9 -9 ------------ Run | Yrd Mat Sub Rec Scr Used RIF Installer . | . . . . . Robots Hacked . | . . . . . Non-combat . | . . . . . Combat . | . . . . . Robot Hacks Applied . | . . . . . Relay Couplers Released . | . . . . . Fabnet Peak Effective % . | . . . . . Robots Rewired . | . . . . . Allies Hacked . | . . . . . Hacks Repelled . | . . . . . Allies | -11 -10 -10 -9 -9 -------- Run | Yrd Mat Sub Rec Scr Total Allies . | . . . . . Largest Group . | . . . . . Highest-Rated Group . | . . . . . Highest-Rated Ally . | . . . . . Total Orders . | . . . . . Ally Attacks . | . . . . . Total Damage . | . . . . . Kills . | . . . . . Allies Corrupted . | . . . . . Allies Melted . | . . . . . Intel | -11 -10 -10 -9 -9 ------- Run | Yrd Mat Sub Rec Scr Robot Analysis Total . | . . . . . Derelict Logs Recovered . | . . . . . Drone Launches . | . . . . . Drone Recoveries . | . . . . . Exploration | -11 -10 -10 -9 -9 ------------- Run | Yrd Mat Sub Rec Scr Turns Passed 7456 | 46 1487 2531 1379 2013 Spaces Moved 7220 | 49 1984 1776 1199 2212 Core 11 | 10 1 . . . Treads . | . . . . . Legs . | . . . . . Wheels 5585 | 39 359 1776 1199 2212 Hover 1624 | . 1624 . . . Flight . | . . . . . Fastest Speed 50 | 50 56 80 90 90 Average Speed 86 | 82 60 101 99 90 Slowest Speed 150 | 100 150 125 110 90 Overloaded Moves . | . . . . . Propulsion Burnouts . | . . . . . Robots Hopped . | . . . . . Cave-ins Triggered . | . . . . . Exploration Rate (%) 72 | 3 98 69 99 92 Regions Visited 4 Branch Regions 3 Pre-discovered Areas . | . . . . . Known Exits Taken . | . . . . . Unknown Exits Taken 4 | 1 1 1 1 . Scrap Searched 15 | . . 9 . 6 Spaces Dug 3 | . . 3 . . Terrain Destroyed 146 | . . 140 6 . Melee . | . . . . . Projectile 7 | . . 1 6 . AOE 139 | . . 139 . . Terrain Rammed . | . . . . . Walls Destroyed . | . . . . . Machines Disabled . | . . . . . Actions | -11 -10 -10 -9 -9 --------- Run | Yrd Mat Sub Rec Scr Total 8131 | 52 2111 2425 1317 2226 Wait 595 | . 21 506 68 . Move 7216 | 48 1983 1775 1198 2212 Hop . | . . . . . Pick Up 12 | . 4 6 . 2 Fast Attach 22 | 4 8 6 3 1 Attach 8 | . 2 4 . 2 Detach 6 | . 3 1 . 2 Swap 3 | . 1 2 . . Drop 22 | . 6 13 1 2 Fire 184 | . 77 73 29 5 Melee . | . . . . . Ram 1 | . 1 . . . Kick . | . . . . . Crush . | . . . . . Escape Stasis . | . . . . . Rewire . | . . . . . Trap . | . . . . . Miscellaneous 62 | . 5 39 18 . Route ------- -11/Scrapyard -10/Materials (discovered 5 exits: [*Mat x3] / *Min / *Sub) -10/Subcaves (discovered 2 exits: [*Mat] / *Rec) -9/Recycling (discovered 2 exits: [*Fac] / [*Scr]) -9/Scraptown (discovered 2 exits: [*Fac x2]) History --------- Turn | Location | Event 16 | -11/Scrapyard | Upgraded with Weapon slot (x1) 27 | -11/Scrapyard | Discovered new exit (range 16) 47 | -11/Scrapyard | Entered Materials 228 | -10/Materials | Discovered new exit (range 15) 285 | -10/Materials | Identified exit to Mines 318 | -10/Materials | Build established: Mutant 379 | -10/Materials | Reached level 2 384 | -10/Materials | Upgraded with Propulsion slot (x1) 409 | -10/Materials | Discovered new exit (range 9) 496 | -10/Materials | Upgraded with Utility slot (x1) 512 | -10/Materials | Discovered new exit (range 15) 628 | -10/Materials | Upgraded with Utility slot (x1) 630 | -10/Materials | Discovered new exit (range 9) 1046 | -10/Materials | Discovered new exit (range 13) 1534 | -10/Materials | Entered Subcaves 1536 | -10/Subcaves | Reached level 3 1565 | -10/Subcaves | Core integrity fell below 50% 1767 | -10/Subcaves | A swath of the cavern ceiling suddenly collapsed 1907 | -10/Subcaves | Visited 4L-MR0's lab 1935 | -10/Subcaves | Found Gun Armor 2140 | -10/Subcaves | Discovered new exit (range 16) 2415 | -10/Subcaves | Disturbed a concealed Subdweller 2415 | -10/Subcaves | Attached Gun Armor, gained temporary slots: Weapon x2 2443 | -10/Subcaves | Upgraded with Utility slot (x1) 2601 | -10/Subcaves | Ambushed by Subdwellers from Twisted Machinery 2703 | -10/Subcaves | Build established: Subdweller-Tank 3668 | -10/Subcaves | Discovered new exit (range 11) 3698 | -10/Subcaves | Disturbed a concealed Subdweller 4065 | -10/Subcaves | Entered Recycling 4067 | -9/Recycling | Reached level 4 4350 | -9/Recycling | Build established: Derelict-Tank 4576 | -9/Recycling | Discovered new exit (range 8) 4780 | -9/Recycling | Upgraded with Propulsion slot (x1) 5019 | -9/Recycling | Scanned before Scraplab entrance 5185 | -9/Recycling | Reached level 5 5270 | -9/Recycling | Destroyed 8 combat bots 5428 | -9/Recycling | Entered Scraplab 5441 | -9/Recycling | Discovered new exit (range 3) 5444 | -9/Recycling | Entered Scraptown 5444 | -9/Scraptown | System corruption cleaned by C-Scrubber 5686 | -9/Scraptown | Discovered new exit (range 3) 5744 | -9/Scraptown | Visited CR-KLE's Repair Center 5953 | -9/Scraptown | Visited Awakened 5968 | -9/Scraptown | Visited Red Mages 6054 | -9/Scraptown | Visited Junk Repository 6081 | -9/Scraptown | Visited TADAMA 6120 | -9/Scraptown | Visited Supply Room 6134 | -9/Scraptown | Visited UFD Registry 6134 | -9/Scraptown | Registered with UFD as "Megabank" 6171 | -9/Scraptown | Visited Cartography Club 6187 | -9/Scraptown | Visited A0-MCA Data Center 6223 | -9/Scraptown | Visited Chapter 10 6236 | -9/Scraptown | Visited Abandonware Association 6287 | -9/Scraptown | Visited DA-N13 Charitable Foundation 6299 | -9/Scraptown | Found DCF Scrap (27 items) 6329 | -9/Scraptown | Visited Curators Association 6347 | -9/Scraptown | Visited Botcube Research 6383 | -9/Scraptown | Visited Junk Repository 6643 | -9/Scraptown | Discovered new exit (range 5) 6705 | -9/Scraptown | Given an A+ rating by A0-MCA 6712 | -9/Scraptown | Found A0-MCA's Component Scanner 6801 | -9/Scraptown | Visited Derelict Rescue Squad 7017 | -9/Scraptown | Visited SPCMW 7018 | -9/Scraptown | Build established: Gunner 7136 | -9/Scraptown | Guru changed UFD alias to "Spikehacker" 7443 | -9/Scraptown | Attacked by Scraptown defenders 7454 | -9/Scraptown | Core integrity fell below 20% 7457 | -9/Scraptown | Destroyed by Triborg with Siege Cannon Last Messages --------------- 07418_ Acquired Kinecellerator. 07443_ ANNOUNCEMENT: Intruder alert! Defend Scraptown! 07445_ Triborg activates siege mode. 07445_ Penetrated by Siege Slug. 07445_ Knocked back. 07445_ Siege Slug penetrates Wall. 07447_ Penetrated by Siege Slug. 07447_ Knocked back. 07449_ Penetrated by Siege Slug. 07449_ Knocked back. 07450_ Scrap Shield destroyed. 07451_ Penetrated by Siege Slug. 07453_ Ion Engine destroyed. 07453_ Knocked back. 07453_ Penetrated by Siege Slug. 07455_ Siege Slug penetrates Wall. 07455_ Penetrated by Siege Slug. 07455_ Knocked back. 07456_ Acquired 5 matter. 07457_ Penetrated by Siege Slug. Map ----- +----------------------------------------------------+ | ?#" " """"""""#?????????????????????????????? | | ?#" ##"""####?????????????????????????????? | | ?#" "" " #?####???????###########??????????????? | | ?#" " #????????????# #??????????????? | | ?#"""""" #????????????# #??????????????# | | ?####### #????????????# """" #??????????????# | | ???????# #?############ """" #??????????????# | | ######## #?#! #[!!# =## """"" #??????????????# | | #?#] #![]#] ## #??????????##### | | #?# # # ## #??????????? | | ######## #?# ## #????????????? | | ??????# #?# ## #??????????????# | | ?????### ########## ##### ##########???????##### | | ?????# #???????#"""" | | ###### #???????#" | | ## #???????#" | | """ # #???????#" | | "" # #???????#" | | " # ################# #???#####" | | " # #??????????????## #???#"""" | | " # #??????????????#"gp #???#"""" | | " # #???????????????; #???#"""" | | "" #?????????????##; #???#"""" | | """ # #????????######%# #???#"""" | | ## #????????#!!""" ; % ###?#"""" | | ###### #????????#!!""@ ; % ""#"#"""" | | ?????# #????????# # j """"#"""" | | ###### #????????# ; ""#######" | | "" # #????????# ! # % % ###?????#" | | "" # #????????#""! # #########" | | "" # #????????#""! | | "" # #????????#""" # | | "" # #????????######## | | # #???????????????# TT% | | " # ################# TT | | "" # % % | | "" % | | "" # | | "" # | | ###### | | #""""#" | | #????#" | | #????#"""" | | ############ ############## ### ####????##### | | #??#" #??#" "## #?????????# | | #??#"" #??#" "## #?????????# | | #??#"" """ #??#" "## #?????????#/ | | #??#""" """#??#" """ "## #?????????#!= | | #??#"" " " """"#??#" """ "## #?????????#=* | | #??#"" """ "#??#" """ "## #?????????### | +----------------------------------------------------+ Best States ------------- Heat Dissipation 37 Energy Generation 10 Energy Capacity 250 Matter Stores 450 Matter Capacity 450 Sight Range 18 Terrain Scan Density 10 Armor Coverage 960 Evasion (%) 53 Targeting Accuracy 5 Kinecelleration 30 Item Schematics ----------------- None Robot Schematics ------------------ None Fabricated ------------ Nothing Alien Tech Used ----------------- None Achievements -------------- None Challenges ------------ None RPGLIKE | -11 -10 -10 -9 -9 --------- Run | Yrd Mat Sub Rec Scr Levels Raised 4 | . 1 1 2 . XP Earned 10245 | 3000 2025 2100 2470 650 XP Spent 6770 | 2350 2120 1500 800 . Upgrades 16 | 6 6 3 1 . Propulsion Slot 2 | . 1 . 1 . Utility Slot 3 | . 2 1 . . Weapon Slot 1 | 1 . . . . Heat Dissipation 2 | . 2 . . . Matter Storage 1 | . 1 . . . Mass Support 1 | 1 . . . . Inventory Capacity 1 | 1 . . . . Sight Range 2 | . . 2 . . Ranged Accuracy 3 | 3 . . . . Protomatter Created 509 | . 63 226 220 . Integrity Restored 1153 | . 84 675 394 . Core 1062 | . 84 675 303 . Parts 91 | . . . 91 . Protomatter Decayed 198 | . 35 75 88 . Game ------ Seed BottomlessCloakBooster Manual? 0 Play Time 01:16:47 Cumulative 67.5 hours Start 2024.09.17 @ 08:01:22 End 2024.09.17 @ 09:20:09 Sessions 1 Manual Loads 0 Difficulty Rogue Special Mode Winter2019/RPGLIKE Game No. 28 Rogue 24 Adventurer 4 Explorer 0 Win Type - Total 1 Types 1/0/0/0/0/0/0/0/0 Lore% 29 Gallery% 38 Achievement% 43 Wizard Run 0 Options --------- Layout 0 ASCII 0 Keyboard 0 Movement Arrows Keybinds 0 Fullscreen 2 Font 32/SmallcapsGlow Map View 88x55 Zoom Use 0% Tactical HUD 1 Map Filters NONE Filters NONE Steam 1 RUN: 27c41547-b000-478a-8aa2-e9930f0420c6